fUST/lending_fUST_20240705
["ID","MTS","AMOUNT","RATE_DAILY","PERIOD"]
[331162525,1720111867332,-1564.47,0.0001589,2]
[331162526,1720111867341,-2030.75,0.0001589,2]
[331162527,1720111867350,-500.0,0.0001589,2]
[331162528,1720111867359,-500.0,0.0001589,2]
[331162529,1720111867368,-151.0,0.0001589,2]
[331162530,1720111867378,-500.0,0.0001589,2]
[331162531,1720111867388,-500.0,0.0001589,2]
[331162532,1720111867398,-500.0,0.0001589,2]
[331162533,1720111867408,-12363.61,0.0001589,2]
[331162534,1720111867417,-500.0,0.0001589,2]
[331162535,1720111867426,-500.0,0.0001589,2]
[331162536,1720111867436,-1157.56,0.0001589,2]
[331162537,1720111867445,-1042.28,0.0001589,2]
[331162538,1720111867455,-742.0,0.0001589,2]
[331162539,1720111867464,-262.855374,0.0001589,2]
[331162540,1720111867473,-500.0,0.0001589,2]
[331162541,1720111867483,-625.22,0.0001589,2]
[331162542,1720111867492,-262.855374,0.0001589,2]
[331162543,1720111867501,-500.0,0.0001589,2]
[331162544,1720111867510,-1044.22,0.0001589,2]
[331162545,1720111867519,-500.0,0.0001589,2]
[331162546,1720111867528,-151.0,0.0001589,2]
[331162547,1720111867539,-1077.61,0.0001589,2]
[331162548,1720111867550,-402.18,0.0001589,2]
[331162549,1720111867560,-500.0,0.0001589,2]
[331162550,1720111867570,-500.0,0.0001589,2]
[331162551,1720111867579,-500.0,0.0001589,2]
[331162552,1720111867589,-500.0,0.0001589,2]
[331162553,1720111867599,-500.0,0.0001589,2]
[331162554,1720111867608,-500.0,0.0001589,2]
[331162555,1720111867618,-638.20004315,0.0001589,2]
[331162556,1720111867628,-976.087188,0.0001589,2]
[331162557,1720111867637,-500.0,0.0001589,2]
[331162558,1720111867647,-976.087188,0.0001589,2]
[331162559,1720111867656,-500.0,0.0001589,2]
[331162560,1720111867665,-1530.62,0.0001589,2]
[331162561,1720111867675,-547.01,0.0001589,2]
[331162562,1720111867685,-500.0,0.0001589,2]
[331162563,1720111867694,-500.0,0.0001589,2]
[331162564,1720111867704,-1040.2,0.0001589,2]
[331162565,1720111867713,-500.0,0.0001589,2]
[331162566,1720111867723,-151.0,0.0001589,2]
[331162567,1720111867732,-1128.2,0.0001589,2]
[331162568,1720111867741,-12654.94,0.0001589,2]
[331162569,1720111867750,-500.0,0.0001589,2]
[331162570,1720111867760,-1107.55,0.0001589,2]
[331162571,1720111867769,-500.0,0.0001589,2]
[331162572,1720111867858,-820.84,0.0001589,2]
[331162573,1720111867868,-500.0,0.0001589,2]
[331162574,1720111867877,-730.93,0.0001589,2]
[331162575,1720111867886,-500.0,0.0001589,2]
[331162576,1720111867895,-500.0,0.0001589,2]
[331162577,1720111867905,-551.19,0.0001589,2]
[331162578,1720111867916,-500.0,0.0001589,2]
[331162579,1720111867926,-1712.0,0.0001589,2]
[331162580,1720111867935,-500.0,0.0001589,2]
[331162581,1720111867944,-737.52,0.0001589,2]
[331162582,1720111867954,-500.0,0.0001589,2]
[331162583,1720111867964,-3301.17,0.0001589,2]
[331162584,1720111867973,-909.9,0.0001589,2]
[331162585,1720111867982,-500.0,0.0001589,2]
[331162586,1720111867992,-1255.282729,0.0001589,2]
[331162587,1720111868004,-500.0,0.0001589,2]
[331162588,1720111868014,-790.85,0.0001589,2]
[331162589,1720111868024,-500.0,0.0001589,2]
[331162590,1720111868033,-1255.282729,0.0001589,2]
[331162591,1720111868042,-4226.55,0.0001589,2]
[331162592,1720111868051,-1110.946963,0.0001589,2]
[331162593,1720111868060,-1373.4,0.0001589,2]
[331162594,1720111868069,-500.0,0.0001589,2]
[331162595,1720111868078,-2265.01,0.0001589,2]
[331162596,1720111868088,-1110.946963,0.0001589,2]
[331162597,1720111868098,-380.045789,0.0001589,2]
[331162598,1720111868107,-500.0,0.0001589,2]
[331162599,1720111868116,-380.045789,0.0001589,2]
[331162600,1720111868125,-610.89,0.0001589,2]
[331162601,1720111868134,-500.0,0.0001589,2]
[331162602,1720111868144,-500.0,0.0001589,2]
[331162603,1720111868153,-500.0,0.0001589,2]
[331162604,1720111868163,-1703.24,0.0001589,2]
[331162605,1720111868172,-1501.58,0.0001589,2]
[331162606,1720111868182,-151.0,0.0001589,2]
[331162607,1720111868192,-500.0,0.0001589,2]
[331162608,1720111868201,-160.383867,0.0001589,2]
[331162609,1720111868210,-160.383867,0.0001589,2]
[331162610,1720111868220,-7558.61,0.0001589,2]
[331162611,1720111868229,-500.0,0.0001589,2]
[331162612,1720111868238,-151.0,0.0001589,2]
[331162613,1720111868247,-500.0,0.0001589,2]
[331162614,1720111868260,-151.0,0.0001589,2]
[331162615,1720111868269,-151.0,0.0001589,2]
[331162616,1720111868279,-628.13,0.0001589,2]
[331162617,1720111868288,-1442.91,0.0001589,2]
[331162618,1720111868297,-580.16,0.0001589,2]
[331162619,1720111868306,-1175.56,0.0001589,2]
[331162620,1720111868316,-500.0,0.0001589,2]
[331162621,1720111868325,-500.0,0.0001589,2]
[331162622,1720111868336,-904.07,0.0001589,2]
[331162623,1720111868346,-482.57,0.0001589,2]
[331162624,1720111868356,-4335.35,0.0001589,2]
[331162625,1720111868366,-500.0,0.0001589,2]
[331162626,1720111868375,-2573.145769,0.0001589,2]
[331162627,1720111868385,-3421.741012,0.0001589,2]
[331162628,1720111868394,-500.0,0.0001589,2]
[331162629,1720111868403,-2573.145769,0.0001589,2]
[331162630,1720111868412,-3421.741012,0.0001589,2]
[331162631,1720111868422,-534.88,0.0001589,2]
[331162632,1720111868431,-345.803772,0.0001589,2]
[331162633,1720111868440,-500.0,0.0001589,2]
[331162634,1720111868450,-345.803772,0.0001589,2]
[331162635,1720111868459,-500.0,0.0001589,2]
[331162636,1720111868469,-500.0,0.0001589,2]
[331162637,1720111868479,-27744.77,0.0001589,2]
[331162638,1720111868489,-500.0,0.0001589,2]
[331162639,1720111868498,-8032.402223,0.0001589,2]
[331162640,1720111868512,-8032.402223,0.0001589,2]
[331162641,1720111868521,-500.0,0.0001589,2]
[331162642,1720111868530,-553.82,0.0001589,2]
[331162643,1720111868540,-897.098697,0.0001589,2]
[331162644,1720111868550,-676.174698,0.0001589,2]
[331162645,1720111868559,-897.098697,0.0001589,2]
[331162646,1720111868570,-676.174698,0.0001589,2]
[331162647,1720111868579,-500.0,0.0001589,2]
[331162648,1720111868588,-500.0,0.0001589,2]
[331162649,1720111868598,-2916.21,0.0001589,2]
[331162650,1720111868609,-1759.87,0.0001589,2]
[331162651,1720111868618,-500.0,0.0001589,2]
[331162652,1720111868628,-4910.82,0.0001589,2]
[331162653,1720111868637,-1048.66,0.0001589,2]
[331162654,1720111868647,-500.0,0.0001589,2]
[331162655,1720111868658,-1929.35,0.0001589,2]
[331162656,1720111868668,-8786.94,0.0001589,2]
[331162657,1720111868678,-500.0,0.0001589,2]
[331162658,1720111868688,-2141.918123,0.0001589,2]
[331162659,1720111868698,-7776.49,0.0001589,2]
[331162660,1720111868707,-2141.918123,0.0001589,2]
[331162661,1720111868717,-205.415912,0.0001589,2]
[331162662,1720111868726,-150.150799,0.00015913,2]
[331162663,1720111868736,-717.661451,0.00015913,2]
[331162664,1720111868745,-644.177273,0.00015913,2]
[331162665,1720111868759,-904.276521,0.00015913,2]
[331162666,1720111868773,-2121.612039,0.00015913,2]
[331162667,1720111868782,-2526.214493,0.00015913,2]
[331162668,1720111868791,-738.717383,0.00015913,2]
[331162669,1720111868802,-153.0,0.00015918,2]
[331162670,1720111868811,-153.0,0.00015918,2]
[331162671,1720111868822,-153.0,0.00015918,2]
[331162672,1720111868831,-153.0,0.00015918,2]
[331162673,1720111868840,-153.0,0.00015918,2]
[331162674,1720111868850,-206.11478,0.00015918,2]
[331162675,1720111868860,-153.0,0.00015918,2]
[331162676,1720111868870,-1330.495095,0.00015927,2]
[331162677,1720111868880,-1330.495095,0.00015927,2]
[331162678,1720111868890,-151.0,0.00015927,2]
[331162679,1720111868899,-151.0,0.00015927,2]
[331162680,1720111868909,-1110.946963,0.00015927,2]
[331162681,1720111868918,-1110.94697,0.00015927,2]
[331162682,1720111868927,-380.045789,0.00015927,2]
[331162683,1720111868937,-380.045784,0.00015927,2]
[331162684,1720111868947,-151.0,0.00015927,2]
[331162685,1720111868957,-160.383867,0.00015927,2]
[331162686,1720111868967,-160.383873,0.00015927,2]
[331162687,1720111868976,-171.195293,0.00015927,2]
[331162688,1720111868987,-151.0,0.00015927,2]
[331162689,1720111868996,-897.098697,0.00015927,2]
[331162690,1720111869008,-676.174698,0.00015927,2]
[331162691,1720111869019,-897.098697,0.00015927,2]
[331162692,1720111869028,-676.174698,0.00015927,2]
[331162693,1720111869037,-2141.918123,0.00015927,2]
[331162694,1720111869047,-2141.918114,0.00015927,2]
[331162695,1720111869056,-20000.0,0.00015927,2]
[331162696,1720111869066,-150.3587272,0.00015957,2]
[331162697,1720111869076,-150.0,0.00015957,2]
[331162698,1720111869085,-208.3665711,0.00015957,2]
[331162699,1720111869095,-942.31962148,0.00015995,2]
[331162700,1720111869104,-152.590037,0.00016104,2]
[331162701,1720111869114,-152.476222,0.00016104,2]
[331162702,1720111869124,-181.999938,0.00016104,2]
[331162703,1720111869133,-150.150799,0.00016104,2]
[331162704,1720111869143,-186.463684,0.00016104,2]
[331162705,1720111869152,-717.661451,0.00016104,2]
[331162706,1720111869162,-644.177273,0.00016104,2]
[331162707,1720111869171,-904.276521,0.00016104,2]
[331162708,1720111869180,-2121.612039,0.00016104,2]
[331162709,1720111869190,-2526.214493,0.00016104,2]
[331162710,1720111869200,-738.717383,0.00016104,2]
[331162711,1720111869210,-752.0,0.0001613,2]
[331162712,1720111869220,-350.0,0.00016155,2]
[331162713,1720111869230,-1206.24,0.00016164,2]
[331162714,1720111869240,-962.97,0.00016164,2]
[331162715,1720111869252,-500.0,0.00016164,2]
[331162716,1720111869263,-846.17,0.00016164,2]
[331162717,1720111869272,-722.55,0.00016164,2]
[331162718,1720111869283,-1088.19,0.00016164,2]
[331162719,1720111869292,-500.0,0.00016164,2]
[331162720,1720111869302,-8296.52,0.00016164,2]
[331162721,1720111869385,-3764.85,0.00016164,2]
[331162722,1720111869395,-500.0,0.00016164,2]
[331162723,1720111869404,-500.0,0.00016164,2]
[331162724,1720111869414,-500.0,0.00016164,2]
[331162725,1720111869424,-691.65,0.00016164,2]
[331162726,1720111869433,-500.0,0.00016164,2]
[331162727,1720111869443,-500.0,0.00016164,2]
[331162728,1720111869452,-1611.17,0.00016164,2]
[331162729,1720111869462,-599.7,0.00016164,2]
[331162730,1720111869471,-500.0,0.00016164,2]
[331162731,1720111869481,-541.95,0.00016164,2]
[331162732,1720111869490,-500.0,0.00016164,2]
[331162733,1720111869503,-500.0,0.00016164,2]
[331162734,1720111869513,-500.0,0.00016164,2]
[331162735,1720111869523,-2198.82,0.00016164,2]
[331162736,1720111869532,-606.86722603,0.00016164,2]
[331162737,1720111869542,-500.0,0.00016164,2]
[331162738,1720111869551,-1018.96,0.00016164,2]
[331162739,1720111869561,-500.0,0.00016164,2]
[331162740,1720111869570,-206.449793,0.00016164,2]
[331162741,1720111869580,-206.449793,0.00016164,2]
[331162742,1720111869590,-781.13,0.00016164,2]
[331162743,1720111869599,-1122.93,0.00016164,2]
[331162744,1720111869609,-151.0,0.00016164,2]
[331162745,1720111869618,-500.0,0.00016164,2]
[331162746,1720111869627,-500.0,0.00016164,2]
[331162747,1720111869637,-500.0,0.00016164,2]
[331162748,1720111869646,-1564.47,0.00016164,2]
[331162749,1720111869655,-2030.75,0.00016164,2]
[331162750,1720111869664,-500.0,0.00016164,2]
[331162751,1720111869673,-500.0,0.00016164,2]
[331162752,1720111869683,-151.0,0.00016164,2]
[331162753,1720111869692,-500.0,0.00016164,2]
[331162754,1720111869701,-500.0,0.00016164,2]
[331162755,1720111869711,-554.75,0.00016164,2]
[331162756,1720111869719,-12363.61,0.00016164,2]
[331162757,1720111869728,-500.0,0.00016164,2]
[331162758,1720111869738,-500.0,0.00016164,2]
[331162759,1720111869747,-1157.56,0.00016164,2]
[331162760,1720111869760,-1042.28,0.00016164,2]
[331162761,1720111869770,-742.0,0.00016164,2]
[331162762,1720111869782,-262.855374,0.00016164,2]
[331162763,1720111869791,-500.0,0.00016164,2]
[331162764,1720111869801,-625.22,0.00016164,2]
[331162765,1720111869811,-262.855374,0.00016164,2]
[331162766,1720111869820,-500.0,0.00016164,2]
[331162767,1720111869830,-1044.22,0.00016164,2]
[331162768,1720111869840,-500.0,0.00016164,2]
[331162769,1720111869850,-1077.61,0.00016164,2]
[331162770,1720111869859,-252.805427,0.00016164,2]
[331162771,1720111869870,-410.01791,0.00016164,2]
[331162772,1720111869879,-500.0,0.00016164,2]
[331162773,1720111869888,-500.0,0.00016164,2]
[331162774,1720111869898,-500.0,0.00016164,2]
[331162775,1720111869908,-500.0,0.00016164,2]
[331162776,1720111869917,-500.0,0.00016164,2]
[331162777,1720111869927,-976.087188,0.00016164,2]
[331162778,1720111869936,-500.0,0.00016164,2]
[331162779,1720111869945,-976.087188,0.00016164,2]
[331162780,1720111869954,-202.79,0.00016164,2]
[331162781,1720111869963,-1530.62,0.00016164,2]
[331162782,1720111869972,-547.01,0.00016164,2]
[331162783,1720111869981,-500.0,0.00016164,2]
[331162784,1720111869991,-500.0,0.00016164,2]
[331162785,1720111870002,-1040.2,0.00016164,2]
[331162786,1720111870011,-500.0,0.00016164,2]
[331162787,1720111870021,-189.887795,0.00016164,2]
[331162788,1720111870030,-1128.2,0.00016164,2]
[331162789,1720111870040,-12654.94,0.00016164,2]
[331162790,1720111870049,-500.0,0.00016164,2]
[331162791,1720111870059,-1107.55,0.00016164,2]
[331162792,1720111870068,-500.0,0.00016164,2]
[331162793,1720111870077,-820.84,0.00016164,2]
[331162794,1720111870086,-500.0,0.00016164,2]
[331162795,1720111870095,-730.93,0.00016164,2]
[331162796,1720111870105,-500.0,0.00016164,2]
[331162797,1720111870114,-500.0,0.00016164,2]
[331162798,1720111870123,-551.19,0.00016164,2]
[331162799,1720111870133,-500.0,0.00016164,2]
[331162800,1720111870142,-1712.0,0.00016164,2]
[331162801,1720111870151,-500.0,0.00016164,2]
[331162802,1720111870160,-737.52,0.00016164,2]
[331162803,1720111870170,-3301.17,0.00016164,2]
[331162804,1720111870179,-500.0,0.00016164,2]
[331162805,1720111870189,-909.9,0.00016164,2]
[331162806,1720111870199,-500.0,0.00016164,2]
[331162807,1720111870208,-1255.282729,0.00016164,2]
[331162808,1720111870218,-500.0,0.00016164,2]
[331162809,1720111870228,-790.85,0.00016164,2]
[331162810,1720111870237,-500.0,0.00016164,2]
[331162811,1720111870246,-4226.55,0.00016164,2]
[331162812,1720111870258,-1255.282729,0.00016164,2]
[331162813,1720111870267,-1373.4,0.00016164,2]
[331162814,1720111870277,-500.0,0.00016164,2]
[331162815,1720111870287,-2265.01,0.00016164,2]
[331162816,1720111870297,-500.0,0.00016164,2]
[331162817,1720111870307,-610.89,0.00016164,2]
[331162818,1720111870316,-500.0,0.00016164,2]
[331162819,1720111870326,-500.0,0.00016164,2]
[331162820,1720111870335,-207.01,0.00016164,2]
[331162821,1720111870345,-1703.24,0.00016164,2]
[331162822,1720111870355,-493.0095958,0.00016164,2]
[331162823,1720111870364,-7558.61,0.00016164,2]
[331162824,1720111870374,-500.0,0.00016164,2]
[331162825,1720111870384,-500.0,0.00016164,2]
[331162826,1720111870393,-151.0,0.00016164,2]
[331162827,1720111870403,-628.13,0.00016164,2]
[331162828,1720111870412,-1442.91,0.00016164,2]
[331162829,1720111870422,-580.16,0.00016164,2]
[331162830,1720111870431,-1175.56,0.00016164,2]
[331162831,1720111870441,-500.0,0.00016164,2]
[331162832,1720111870450,-500.0,0.00016164,2]
[331162833,1720111870460,-904.07,0.00016164,2]
[331162834,1720111870470,-4335.35,0.00016164,2]
[331162835,1720111870479,-500.0,0.00016164,2]
[331162836,1720111870488,-2573.145769,0.00016164,2]
[331162837,1720111870498,-3421.741012,0.00016164,2]
[331162838,1720111870510,-500.0,0.00016164,2]
[331162839,1720111870519,-2573.14576508,0.00016164,2]
[331162840,1720111870528,-3421.741019,0.00016164,2]
[331162841,1720111870537,-534.88,0.00016164,2]
[331162842,1720111870546,-345.803772,0.00016164,2]
[331162843,1720111870555,-500.0,0.00016164,2]
[331162844,1720111870565,-345.80377,0.00016164,2]
[331162845,1720111870576,-500.0,0.00016164,2]
[331162846,1720111870585,-500.0,0.00016164,2]
[331162847,1720111870595,-27744.77,0.00016164,2]
[331162848,1720111870605,-500.0,0.00016164,2]
[331162849,1720111870614,-8032.402223,0.00016164,2]
[331162850,1720111870624,-8032.402229,0.00016164,2]
[331162851,1720111870633,-500.0,0.00016164,2]
[331162852,1720111870643,-553.82,0.00016164,2]
[331162853,1720111870653,-500.0,0.00016164,2]
[331162854,1720111870662,-500.0,0.00016164,2]
[331162855,1720111870672,-2916.21,0.00016164,2]
[331162856,1720111870681,-1759.87,0.00016164,2]
[331162857,1720111870691,-4910.82,0.00016164,2]
[331162858,1720111870772,-1048.66,0.00016164,2]
[331162859,1720111870782,-500.0,0.00016164,2]
[331162860,1720111870791,-1929.35,0.00016164,2]
[331162861,1720111870802,-8786.94,0.00016164,2]
[331162862,1720111870812,-500.0,0.00016164,2]
[331162863,1720111870821,-7776.49,0.00016164,2]
[331162864,1720111870831,-306.0,0.00016164,2]
[331162865,1720111870840,-153.0,0.00016164,2]
[331162866,1720111870850,-153.0,0.00016164,2]
[331162867,1720111870860,-206.11478,0.00016164,2]
[331162868,1720111870871,-153.0,0.00016164,2]
[331162869,1720111870881,-206.11478,0.00016164,2]
[331162870,1720111870890,-153.0,0.00016164,2]
[331162871,1720111870900,-153.0,0.00016164,2]
[331162872,1720111870909,-206.11478,0.00016164,2]
[331162873,1720111870919,-153.0,0.00016164,2]
[331162874,1720111870928,-153.0,0.00016164,2]
[331162875,1720111870938,-153.0,0.00016164,2]
[331162876,1720111870948,-206.11478,0.00016164,2]
[331162877,1720111870957,-153.0,0.00016164,2]
[331162878,1720111870966,-206.11478,0.00016164,2]
[331162879,1720111870975,-153.0,0.00016164,2]
[331162880,1720111870984,-153.0,0.00016164,2]
[331162881,1720111870994,-153.0,0.00016164,2]
[331162882,1720111871005,-206.11478,0.00016164,2]
[331162883,1720111871015,-153.0,0.00016164,2]
[331162884,1720111871025,-153.0,0.00016164,2]
[331162885,1720111871035,-206.11478,0.00016164,2]
[331162886,1720111871045,-153.0,0.00016164,2]
[331162887,1720111871055,-150.0,0.000162,2]
[331162888,1720111871064,-99520.44976274,0.00016254,2]
[331162889,1720111871226,-3741.15649222,0.00016254,2]
[331162890,1720111871238,-326.11,0.00016254,2]
[331162891,1720111891188,599.14,0.00010959,2]
[331162892,1720111904608,154.99904076,9.999e-05,2]
[331162893,1720111919525,776.37615452,9.999e-05,2]
[331162894,1720111969871,1605.91541465,9.999e-05,2]
[331162895,1720111980553,840.24573238,9.999e-05,2]
[331162900,1720112180760,187.64478609,9.999e-05,2]
[331162909,1720112221240,1283.28106561,9.999e-05,2]
[331162911,1720112262280,187.64478609,9.999e-05,2]
[331162923,1720112372314,187.56162456,9.999e-05,2]
[331162931,1720112476294,187.64478609,9.999e-05,2]
[331162934,1720112554794,187.64478609,9.999e-05,2]
[331162938,1720112641042,187.56162456,9.999e-05,2]
[331162940,1720112701679,208.83961786,9.999e-05,2]
[331162947,1720112785806,187.61706558,9.999e-05,2]
[331163047,1720113032276,-190.88240731,0.0001202,2]
[331163049,1720113032285,-155.03687583,0.0001212,2]
[331163051,1720113032295,-300.0,0.0001267,2]
[331163053,1720113032304,-300.0,0.0001267,2]
[331163055,1720113032313,-954.08071686,0.00012671,2]
[331163125,1720113038457,-23945.91928314,0.00012671,2]
[331163128,1720113038468,-499.96109357,0.000131,2]
[331163131,1720113038478,-500.0,0.000132,2]
[331163134,1720113038489,-500.0,0.000133,2]
[331163137,1720113038499,-500.0,0.000134,2]
[331163139,1720113038508,-500.0,0.000135,2]
[331163140,1720113038518,-429.54814426,0.00013598,2]
[331163141,1720113038528,-500.0,0.000136,2]
[331163142,1720113038537,-429.54814423,0.00013667,2]
[331163143,1720113038547,-104844.778597,0.00013688,2]
[331163144,1720113038557,-503.58463259,0.00013698,2]
[331163145,1720113038567,-500.0,0.00013698,2]
[331163146,1720113038576,-530.12306871,0.00013698,2]
[331163147,1720113038586,-1050.54,0.00013698,2]
[331163148,1720113038596,-501.69172195,0.00013698,2]
[331163149,1720113038606,-500.0,0.00013698,2]
[331163150,1720113038616,-500.0,0.00013698,2]
[331163151,1720113038625,-500.0,0.00013698,2]
[331163152,1720113038635,-565.04,0.00013698,2]
[331163153,1720113038645,-500.0,0.00013698,2]
[331163154,1720113038655,-504.1655653,0.00013698,2]
[331163155,1720113038665,-504.97517005,0.00013698,2]
[331163156,1720113038675,-500.0,0.00013698,2]
[331163157,1720113038684,-500.0,0.00013698,2]
[331163158,1720113038694,-400.0,0.00013698,2]
[331163159,1720113038704,-500.0,0.00013698,2]
[331163160,1720113038714,-771.74,0.00013698,2]
[331163161,1720113038724,-500.0,0.00013698,2]
[331163162,1720113038734,-401.0,0.00013698,2]
[331163163,1720113038744,-500.0,0.00013698,2]
[331163164,1720113038753,-500.0,0.00013698,2]
[331163165,1720113038763,-500.0,0.00013698,2]
[331163166,1720113038772,-500.0,0.00013698,2]
[331163167,1720113038782,-634.77,0.00013698,2]
[331163168,1720113038791,-500.0,0.00013698,2]
[331163169,1720113038801,-500.0,0.00013698,2]
[331163170,1720113038810,-7742.29,0.00013698,2]
[331163171,1720113038819,-655.42,0.00013698,2]
[331163172,1720113038829,-500.0,0.00013698,2]
[331163173,1720113038838,-4145.78,0.00013698,2]
[331163174,1720113038848,-500.0,0.00013698,2]
[331163175,1720113038858,-500.0,0.00013698,2]
[331163176,1720113038868,-500.0,0.00013698,2]
[331163177,1720113038878,-500.0,0.00013698,2]
[331163178,1720113038888,-309.7057795,0.00013698,2]
[331163179,1720113038898,-500.0,0.00013698,2]
[331163180,1720113038908,-500.0,0.00013698,2]
[331163181,1720113038918,-500.0,0.00013698,2]
[331163182,1720113038928,-500.0,0.00013698,2]
[331163183,1720113038938,-500.0,0.00013698,2]
[331163184,1720113038948,-283.07585689,0.00013698,2]
[331163185,1720113038958,-500.0,0.00013698,2]
[331163186,1720113038968,-500.0,0.00013698,2]
[331163187,1720113038980,-500.0,0.00013698,2]
[331163188,1720113038991,-500.0,0.00013698,2]
[331163189,1720113039001,-500.0,0.00013698,2]
[331163190,1720113039011,-500.0,0.00013698,2]
[331163191,1720113039022,-500.0,0.00013698,2]
[331163192,1720113039032,-500.0,0.00013698,2]
[331163193,1720113039042,-500.0,0.00013698,2]
[331163194,1720113039052,-500.0,0.00013698,2]
[331163195,1720113039062,-500.0,0.00013698,2]
[331163196,1720113039072,-500.0,0.00013698,2]
[331163197,1720113039082,-500.0,0.00013698,2]
[331163198,1720113039092,-253.76471171,0.00013698,2]
[331163199,1720113039102,-500.0,0.00013698,2]
[331163200,1720113039112,-500.0,0.00013698,2]
[331163201,1720113039122,-179.82155675,0.00013698,2]
[331163202,1720113039132,-500.0,0.00013698,2]
[331163203,1720113039147,-500.0,0.00013698,2]
[331163204,1720113039157,-500.0,0.00013698,2]
[331163205,1720113039166,-1158.37,0.00013698,2]
[331163206,1720113039177,-500.0,0.00013698,2]
[331163207,1720113039187,-500.0,0.00013698,2]
[331163208,1720113039196,-500.0,0.00013698,2]
[331163209,1720113039206,-347.45257925,0.00013698,2]
[331163210,1720113039218,-500.0,0.00013698,2]
[331163211,1720113039228,-500.0,0.00013698,2]
[331163212,1720113039238,-500.0,0.00013698,2]
[331163213,1720113039248,-500.0,0.00013698,2]
[331163214,1720113039258,-500.0,0.00013698,2]
[331163215,1720113039268,-500.0,0.00013698,2]
[331163216,1720113039278,-500.0,0.00013698,2]
[331163217,1720113039288,-500.0,0.00013698,2]
[331163218,1720113039298,-1100.5,0.00013698,2]
[331163219,1720113039307,-500.0,0.00013698,2]
[331163220,1720113039318,-500.0,0.00013698,2]
[331163221,1720113039328,-500.0,0.00013698,2]
[331163222,1720113039339,-500.0,0.00013698,2]
[331163223,1720113039349,-500.0,0.00013698,2]
[331163224,1720113039359,-510.876369,0.00013698,2]
[331163225,1720113039369,-614.82,0.00013698,2]
[331163226,1720113039379,-500.0,0.00013698,2]
[331163227,1720113039389,-500.0,0.00013698,2]
[331163228,1720113039399,-1614.18,0.00013698,2]
[331163229,1720113039410,-201.99295825,0.00013698,2]
[331163230,1720113039419,-521.72,0.00013698,2]
[331163231,1720113039429,-500.0,0.00013698,2]
[331163232,1720113039438,-505.79478751,0.00013698,2]
[331163233,1720113039448,-500.0,0.00013698,2]
[331163234,1720113039458,-500.0,0.00013698,2]
[331163235,1720113039474,-476.562651,0.00013698,2]
[331163236,1720113039485,-500.0,0.00013698,2]
[331163237,1720113039495,-500.0,0.00013698,2]
[331163238,1720113039504,-500.0,0.00013698,2]
[331163239,1720113039515,-410.64477722,0.00013698,2]
[331163240,1720113039525,-500.0,0.00013698,2]
[331163241,1720113039536,-500.0,0.00013698,2]
[331163242,1720113039546,-500.0,0.00013698,2]
[331163243,1720113039556,-500.0,0.00013698,2]
[331163244,1720113039566,-500.0,0.00013698,2]
[331163245,1720113039576,-500.0,0.00013698,2]
[331163246,1720113039586,-500.0,0.00013698,2]
[331163247,1720113039596,-500.0,0.00013698,2]
[331163248,1720113039607,-500.0,0.00013698,2]